bitfinex/quotes_BTCUSD_20260104
["timestamp","ask_amount","ask_price","bid_price","bid_amount"]
[1767560944423,0.01095038,91321.0,91316.0,0.01095098]
[1767560944621,0.01095026,91322.0,91317.0,0.01095086]
[1767560944801,0.01095038,91321.0,91316.0,0.01095098]
[1767560947102,0.000999,91316.0,91313.0,0.01095134]
[1767560947295,0.06570307,91320.0,91314.0,0.01095122]
[1767560947296,0.01095062,91319.0,91314.0,0.01095122]
[1767560947644,0.01095062,91319.0,91315.0,0.0109511]
[1767560947919,0.0109505,91320.0,91316.0,0.01095098]
[1767560948123,0.0109505,91320.0,91315.0,0.0109511]
[1767560949124,0.01094966,91327.0,91322.0,0.01095026]
[1767560949298,0.01094954,91328.0,91322.0,0.01095026]
[1767560949822,0.000167,91326.0,91322.0,0.01095026]
[1767560950440,0.01111678,91326.0,91321.0,0.01095038]
[1767560950647,0.0109499,91325.0,91321.0,0.01095038]
[1767560950821,0.01111678,91326.0,91321.0,0.01095038]
[1767560951213,0.0109499,91325.0,91320.0,0.0109505]
[1767560952215,0.01095002,91324.0,91319.0,0.01095062]
[1767560952413,0.01095002,91324.0,91320.0,0.0109505]
[1767560952616,0.01095002,91324.0,91319.0,0.01095062]
[1767560952916,0.0109499,91325.0,91320.0,0.0109505]
[1767560953140,0.01095002,91324.0,91319.0,0.01095062]
[1767560953339,0.0109499,91325.0,91320.0,0.0109505]
[1767560953745,0.01086178,91325.0,91320.0,0.0109505]
[1767560954344,0.01095002,91324.0,91319.0,0.01095062]
[1767560954526,0.01086178,91325.0,91320.0,0.0109505]
[1767560958277,0.0109499,91325.0,91320.0,0.0109505]
[1767560959935,0.01095002,91324.0,91317.0,0.05475391]
[1767560960093,0.000999,91320.0,91317.0,0.05475391]
[1767560960292,0.01095062,91319.0,91314.0,0.01095122]
[1767560961037,0.01095038,91321.0,91316.0,0.01095098]
[1767560961445,0.0109505,91320.0,91315.0,0.0109511]
[1767560962215,0.0109505,91320.0,91316.0,0.01095098]
[1767560962617,0.01095014,91323.0,91317.0,0.01095086]
[1767560962957,0.01095026,91322.0,91317.0,0.01095086]
[1767560963321,0.01095014,91323.0,91318.0,0.01095074]
[1767560963541,0.01095026,91322.0,91317.0,0.01095086]
[1767560964263,0.01095026,91322.0,91317.0,0.01081266]
[1767560965235,0.01095014,91323.0,91318.0,0.01095074]
[1767560966207,0.01095014,91323.0,91319.0,0.01095062]
[1767560967190,0.01095014,91323.0,91318.0,0.01095074]
[1767560968196,0.01095014,91323.0,91319.0,0.01095062]
[1767560968401,0.01095014,91323.0,91318.0,0.01095074]
[1767560968814,0.01095014,91323.0,91319.0,0.01095062]
[1767560969834,0.01095014,91323.0,91318.0,0.01095074]
[1767560970040,0.01111678,91326.0,91320.0,0.0109505]
[1767560970239,0.01102863,91326.0,91320.0,0.01086051]
[1767560970439,0.0109499,91325.0,91320.0,0.01077052]
[1767560970852,0.01095002,91324.0,91319.0,0.01095062]
[1767560971054,0.01095002,91324.0,91320.0,0.0109505]
[1767560971504,0.01095002,91324.0,91319.0,0.01095062]
[1767560971710,0.0109499,91325.0,91320.0,0.0109505]
[1767560971908,0.0109499,91325.0,91316.0,0.01095098]
[1767560971909,0.01095014,91323.0,91316.0,0.01095098]
[1767560972247,0.01095026,91322.0,91317.0,0.01095086]
[1767560972445,0.01095014,91323.0,91318.0,0.01095074]
[1767560973695,0.01095026,91322.0,91317.0,0.01095086]
[1767560973902,0.01095014,91323.0,91318.0,0.01095074]
[1767560974306,0.01095038,91321.0,91316.0,0.01095098]
[1767560974510,0.000999,91318.0,91316.0,0.01095098]
[1767560974714,0.01095026,91322.0,91317.0,0.01095086]
[1767560975354,0.01086211,91322.0,91317.0,0.01095086]
[1767560975783,0.01095038,91321.0,91316.0,0.01095098]
[1767560976326,0.01095038,91321.0,91317.0,0.01095086]
[1767560977040,0.01095038,91321.0,91316.0,0.01095098]
[1767560978864,0.01095038,91321.0,91317.0,0.01095086]
[1767560979043,0.01095038,91321.0,91316.0,0.01095098]
[1767560979462,0.01095038,91321.0,91316.0,0.01081278]
[1767560979871,0.01086211,91322.0,91317.0,0.01095086]
[1767560980074,0.01095014,91323.0,91317.0,0.01095086]
[1767560980282,0.01095002,91324.0,91318.0,0.01095074]
[1767560981123,7.885e-05,91326.0,91321.0,0.01095038]
[1767560981324,0.0109499,91325.0,91319.0,0.06570317]
[1767560981524,0.0109499,91325.0,91319.0,0.01095062]
[1767560981727,0.01095014,91323.0,91318.0,0.01095074]
[1767560982153,0.01095002,91324.0,91319.0,0.01095062]
[1767560983036,0.01095002,91324.0,91319.0,0.01086062]
[1767560983235,0.000999,91319.0,91315.0,0.0109511]
[1767560983455,0.06570085,91323.0,91315.0,0.0109511]
[1767560983885,0.01095026,91322.0,91316.0,0.01095098]
[1767560984441,0.0109499,91325.0,91319.0,0.01095062]
[1767560984812,0.01095002,91324.0,91319.0,0.01095062]
[1767560985763,0.0109499,91325.0,91319.0,0.01095062]
[1767560986169,0.0109499,91325.0,91320.0,0.0109505]
[1767560986328,0.01095002,91324.0,91319.0,0.01095062]
[1767560988565,0.01095002,91324.0,91318.0,0.01095074]
[1767560988566,0.01095014,91323.0,91318.0,0.01095074]
[1767560988721,0.01095014,91323.0,91319.0,0.01095062]
[1767560989220,0.01095002,91324.0,91319.0,0.01095062]
[1767560989875,0.000999,91319.0,91313.0,0.01095134]
[1767560990049,0.01095062,91319.0,91314.0,0.01095122]
[1767560990250,0.0109505,91320.0,91315.0,0.0109511]
[1767560990452,0.01095062,91319.0,91312.0,0.0333743]
[1767560990657,0.01095074,91318.0,91314.0,0.02192]
[1767560990876,0.01095074,91318.0,91314.0,0.020921]
[1767560991052,0.01095074,91318.0,91314.0,0.03187222]
[1767560991467,0.01095074,91318.0,91314.0,0.020921]
[1767560993350,0.0657042,91319.0,91314.0,0.03187222]
[1767560993552,0.01095074,91318.0,91314.0,0.020921]
[1767560993754,0.01095086,91317.0,91314.0,0.020921]
[1767560993987,0.01095074,91318.0,91314.0,0.02078282]
[1767560994195,0.04598195,91316.0,91314.0,0.00962566]
[1767560994391,0.10073746,91315.0,91314.0,0.0095816]
[1767560995318,0.10073746,91315.0,91314.0,0.00953754]
[1767560995519,0.05475551,91315.0,91314.0,0.00953754]
[1767560996692,0.10073746,91315.0,91314.0,0.00953754]
[1767560996897,0.05475551,91315.0,91314.0,0.00953754]
[1767560999453,0.01095242,91304.0,91303.0,0.02192]
[1767560999650,0.01095242,91304.0,91299.0,0.02192]
[1767560999651,0.01095278,91301.0,91299.0,0.02192]
[1767560999828,0.01095254,91303.0,91301.0,0.000999]
[1767560999829,0.01095266,91302.0,91301.0,0.000999]
[1767561000192,0.01095266,91302.0,91299.0,0.02192]
[1767561000396,0.01095254,91303.0,91299.0,0.02192]
[1767561001138,0.00995354,91303.0,91299.0,0.02192]
[1767561002461,0.05627339,91310.0,91303.0,0.01095254]
[1767561002663,0.01095122,91314.0,91307.0,0.01095206]
[1767561002905,0.01095134,91313.0,91308.0,0.01095194]
[1767561003447,0.01095146,91312.0,91307.0,0.01095206]
[1767561003900,0.0109517,91310.0,91305.0,0.06571346]
[1767561004042,0.01095182,91309.0,91305.0,0.0109523]
[1767561004248,0.01095182,91309.0,91304.0,0.01095242]
[1767561004604,0.01095182,91309.0,91300.0,0.0109529]
[1767561004605,0.01095194,91308.0,91300.0,0.0109529]
[1767561004832,0.01095218,91306.0,91299.0,0.03287302]
[1767561004997,0.01095218,91306.0,91300.0,0.0109529]
[1767561005207,0.01095242,91304.0,91299.0,0.01095302]
[1767561005405,0.01095242,91304.0,91298.0,0.01095314]
[1767561005806,0.01095254,91303.0,91299.0,0.01095302]
[1767561006010,0.01095242,91304.0,91299.0,0.01095302]
[1767561006227,0.01095254,91303.0,91296.0,0.02192]
[1767561006426,0.01195202,91299.0,91296.0,0.02192]
[1767561006755,0.01095326,91297.0,91292.0,0.01095386]
[1767561007086,0.0109529,91300.0,91294.0,0.01095362]
[1767561007253,0.0109529,91300.0,91295.0,0.0109535]
[1767561007456,0.01095278,91301.0,91296.0,0.01095338]
[1767561007658,0.0109529,91300.0,91295.0,0.0109535]
[1767561007858,0.01095278,91301.0,91296.0,0.01095338]
[1767561008020,0.0109529,91300.0,91296.0,0.01095338]
[1767561008227,0.01095278,91301.0,91296.0,0.01081518]
[1767561008455,0.01095278,91301.0,91296.0,0.01095338]
[1767561009512,0.01095266,91302.0,91297.0,0.01095326]
[1767561011845,0.06571543,91303.0,91298.0,0.01095314]
[1767561012060,0.01095266,91302.0,91297.0,0.01095326]
[1767561013519,0.01095254,91303.0,91298.0,0.01095314]
[1767561013728,0.01095254,91303.0,91299.0,0.01095302]
[1767561013943,0.21903532,91310.0,91295.0,0.06558034]
[1767561013944,0.02192,91307.0,91303.0,0.01095254]
[1767561014147,0.03287206,91307.0,91302.0,0.01095266]
[1767561014646,0.02192,91307.0,91303.0,0.01095254]
[1767561014884,0.05475709,91313.0,91307.0,0.01095206]
[1767561014885,0.01095134,91313.0,91307.0,0.01095206]
[1767561015089,0.01095122,91314.0,91307.0,0.01095206]
[1767561015294,0.01095134,91313.0,91307.0,0.01095206]
[1767561015458,0.01095158,91311.0,91306.0,0.01095218]
[1767561016251,0.0109517,91310.0,91305.0,0.0109523]
[1767561016428,0.01095146,91312.0,91306.0,0.01095218]
[1767561016834,0.01095098,91316.0,91309.0,0.01095182]
[1767561017018,0.01169235,91318.0,91311.0,0.01095158]
[1767561017217,0.01169235,91318.0,91311.0,0.06570908]
[1767561017419,0.01095086,91317.0,91312.0,0.01095146]
[1767561017656,0.01095086,91317.0,91313.0,0.01095134]
[1767561017871,0.01095086,91317.0,91312.0,0.01095146]
[1767561018078,0.01095098,91316.0,91311.0,0.01095158]
[1767561019195,0.0109511,91315.0,91310.0,0.0109517]
[1767561019662,0.01095086,91317.0,91311.0,0.01095158]
[1767561020174,0.01095086,91317.0,91312.0,0.01095146]
[1767561020381,0.01095074,91318.0,91313.0,0.01095134]
[1767561020583,0.01095086,91317.0,91312.0,0.01095146]
[1767561021456,0.0657042,91319.0,91312.0,0.0657087]
[1767561021595,0.06570191,91322.0,91313.0,0.01095134]
[1767561021796,0.01095074,91318.0,91314.0,0.01095122]
[1767561022019,0.01095062,91319.0,91314.0,0.01095122]
[1767561022849,0.01095074,91318.0,91313.0,0.01095134]
[1767561023051,0.01095062,91319.0,91314.0,0.01095122]
[1767561025673,0.01095062,91319.0,91315.0,0.0109511]
[1767561026096,0.1005769,91321.0,91315.0,0.0109511]
[1767561028890,0.01095062,91319.0,91314.0,0.01095122]
[1767561029367,0.01095062,91319.0,91315.0,0.0109511]
[1767561029572,0.01095062,91319.0,91314.0,0.01095122]
[1767561029708,0.01086245,91319.0,91314.0,0.01095122]
[1767561030111,0.01095074,91318.0,91314.0,0.01095122]
[1767561030520,0.01086245,91319.0,91314.0,0.01095122]
[1767561031118,0.01095074,91318.0,91312.0,0.0657087]
[1767561031267,0.000999,91314.0,91312.0,0.0657087]
[1767561031481,0.01095074,91318.0,91313.0,0.01095134]
[1767561031678,0.01095086,91317.0,91313.0,0.01095134]
[1767561031882,0.01095074,91318.0,91313.0,0.01095134]
[1767561032077,0.01095086,91317.0,91312.0,0.0657087]
[1767561032302,0.01095074,91318.0,91313.0,0.01095134]
[1767561032714,0.01095086,91317.0,91312.0,0.0657087]
[1767561033070,0.01095086,91317.0,91313.0,0.01095134]
[1767561033287,0.000999,91312.0,91308.0,0.01095194]
[1767561033492,0.000999,91312.0,91309.0,0.01095182]
[1767561033693,0.05475594,91315.0,91309.0,0.01095182]
[1767561033694,0.06570704,91315.0,91310.0,0.0109517]
[1767561033896,0.0109511,91315.0,91310.0,0.0109517]
[1767561034110,0.01095122,91314.0,91309.0,0.01095182]
[1767561034323,0.0109511,91315.0,91310.0,0.0109517]
[1767561034759,0.01095098,91316.0,91311.0,0.01045158]
[1767561037229,0.01095086,91317.0,91312.0,0.01095146]
[1767561037497,0.0552551,91321.0,91313.0,0.01095134]
[1767561037690,0.02192,91320.0,91317.0,0.01095086]
[1767561040196,0.02192,91320.0,91316.0,0.01095098]
[1767561041268,0.02192,91320.0,91317.0,0.01095086]
[1767561043805,0.00050281,91321.0,91318.0,0.01095074]
[1767561044011,0.02192,91319.0,91318.0,0.01095074]
[1767561044874,0.00050281,91321.0,91318.0,0.06570404]
[1767561045122,1e-08,91321.0,91320.0,0.05475251]
[1767561053648,1e-08,91321.0,91320.0,0.05466249]
[1767561056699,1e-08,91321.0,91320.0,0.05457247]
[1767561060732,1e-08,91321.0,91320.0,0.05357347]
[1767561061615,0.01098906,91332.0,91320.0,0.05357347]
[1767561061616,0.01098906,91332.0,91329.0,0.01094942]
[1767561061617,4e-05,91332.0,91329.0,0.01094942]
[1767561061828,4e-05,91332.0,91330.0,0.054746]
[1767561062041,4e-05,91332.0,91329.0,0.06569596]
[1767561062256,0.0328687,91335.0,91332.0,0.01094906]
[1767561062257,0.02192,91335.0,91332.0,0.01094906]
[1767561062487,0.02192,91335.0,91325.0,0.21899634]
[1767561062488,0.00571219,91364.0,91335.0,0.000959]
[1767561062713,0.05853195,91364.0,91356.0,0.05473094]
[1767561062941,0.05853195,91364.0,91354.0,0.01094642]
[1767561062942,9.058e-05,91355.0,91354.0,0.01094642]
[1767561063157,9.058e-05,91355.0,91351.0,0.01094678]
[1767561063387,9.058e-05,91355.0,91343.0,0.02192]
[1767561063388,9.058e-05,91355.0,91344.0,0.01094762]
[1767561063389,0.01094642,91354.0,91344.0,0.01094762]
[1767561063620,9.058e-05,91355.0,91341.0,0.00065648]
[1767561063621,0.01094714,91348.0,91341.0,0.00065648]
[1767561063852,0.01087827,91348.0,91342.0,0.01094786]
[1767561064052,0.01094762,91344.0,91341.0,0.00065648]
[1767561064262,0.00169127,91342.0,91333.0,0.01094894]
[1767561064465,0.01094822,91339.0,91331.0,0.01094918]
[1767561064670,0.01094846,91337.0,91329.0,0.02192]
[1767561064846,4e-05,91331.0,91329.0,0.02192]
[1767561065106,4e-05,91331.0,91328.0,1e-08]
[1767561065107,0.0585759,91331.0,91328.0,1e-08]
[1767561065228,0.0585359,91331.0,91328.0,1e-08]
[1767561065431,0.05474652,91330.0,91328.0,1e-08]
[1767561065634,0.00693884,91323.0,91319.0,0.01095062]
[1767561065869,0.00693884,91323.0,91320.0,0.0109505]
[1767561067513,0.00693884,91323.0,91320.0,0.0109105]
[1767561068255,0.00593984,91323.0,91320.0,0.0109105]
[1767561068455,0.00593984,91323.0,91321.0,0.05475191]
[1767561069728,0.04758672,91333.0,91326.0,0.01094978]
[1767561069926,0.0109493,91330.0,91326.0,0.01094978]
[1767561070132,0.01094942,91329.0,91323.0,0.06570053]
[1767561070368,0.01094918,91331.0,91323.0,0.06570053]
[1767561070369,0.0109493,91330.0,91324.0,0.01095002]
[1767561070780,0.01094954,91328.0,91323.0,0.01095014]
[1767561071150,0.000999,91323.0,91320.0,0.0109105]
[1767561071316,0.000999,91323.0,91320.0,0.0656627]
[1767561071717,0.01094954,91328.0,91323.0,0.01095014]
[1767561071968,0.01094954,91328.0,91320.0,0.0656627]
[1767561072115,0.01094978,91326.0,91321.0,0.01095038]
[1767561072314,0.01094966,91327.0,91322.0,0.01095026]
[1767561072539,0.01094978,91326.0,91321.0,0.01095038]
[1767561072745,0.01094966,91327.0,91322.0,0.01095026]
[1767561072958,0.01094978,91326.0,91321.0,0.01095038]
[1767561073327,0.01094966,91327.0,91322.0,0.01095026]
[1767561073715,0.02199086,91332.0,91328.0,0.01094954]
[1767561073941,0.03293992,91332.0,91327.0,0.01194866]
[1767561074153,0.01094918,91331.0,91327.0,0.000999]
[1767561074372,0.03293992,91332.0,91327.0,0.01094966]
[1767561075342,0.01094918,91331.0,91326.0,0.01094978]
[1767561075547,0.0109493,91330.0,91325.0,0.0109499]
[1767561076099,0.0109493,91330.0,91323.0,0.01095014]
[1767561076300,0.01094978,91326.0,91321.0,0.01095038]
[1767561076553,0.01094966,91327.0,91322.0,0.01095026]
[1767561076730,0.01094978,91326.0,91320.0,0.0109505]
[1767561076973,0.01094978,91326.0,91321.0,0.01095038]
[1767561077100,0.0109499,91325.0,91320.0,0.0109505]
[1767561077325,0.03293992,91332.0,91325.0,0.04751082]
[1767561077671,0.03293992,91332.0,91326.0,0.01094978]
[1767561077796,0.02199086,91332.0,91328.0,0.01094954]
[1767561078168,0.03293992,91332.0,91327.0,0.01094966]
[1767561078358,0.01094918,91331.0,91326.0,0.01094978]
[1767561078504,0.0109493,91330.0,91326.0,0.01094978]
[1767561078944,0.01094918,91331.0,91326.0,0.01094978]
[1767561079962,0.01094918,91331.0,91327.0,0.01094966]
[1767561080159,0.01094918,91331.0,91326.0,0.01094978]
[1767561080664,0.03293992,91332.0,91327.0,0.01094966]
[1767561081474,0.01094918,91331.0,91326.0,0.01094978]
[1767561081634,0.0109493,91330.0,91326.0,0.01094978]
[1767561081833,0.01094918,91331.0,91326.0,0.01094978]
[1767561082582,0.03293992,91332.0,91327.0,0.01094966]
[1767561083995,0.02192,91334.0,91332.0,0.01194806]
[1767561084226,0.02192,91334.0,91331.0,0.01094918]
[1767561084737,0.05474136,91339.0,91333.0,0.01094894]
[1767561084886,0.01094858,91336.0,91332.0,0.01094906]
[1767561085085,0.01094858,91336.0,91331.0,0.01094918]
[1767561085425,0.01094846,91337.0,91332.0,0.01094906]
[1767561085626,0.01094858,91336.0,91331.0,0.01094918]
[1767561085826,0.01094858,91336.0,91332.0,0.01094906]
[1767561086027,0.01094846,91337.0,91332.0,0.01094906]
[1767561086193,0.01094858,91336.0,91331.0,0.01094918]
[1767561086395,0.0109487,91335.0,91331.0,0.01094918]
[1767561086781,0.01094858,91336.0,91331.0,0.01094918]
[1767561087379,0.01094858,91336.0,91332.0,0.01094906]
[1767561087637,0.01094858,91336.0,91331.0,0.01094918]
[1767561088056,0.01094894,91333.0,91325.0,0.05746172]
[1767561088218,0.02192,91338.0,91323.0,0.01095014]
[1767561088219,0.0109493,91330.0,91323.0,0.01095014]
[1767561088411,0.04758672,91337.0,91326.0,0.01094978]
[1767561088412,0.01094918,91331.0,91326.0,0.01094978]
[1767561089771,0.0547441,91335.0,91326.0,0.01094978]
[1767561089974,0.01094894,91333.0,91328.0,0.01094954]
[1767561091668,0.01094906,91332.0,91327.0,0.01094966]
[1767561091881,0.01094906,91332.0,91328.0,0.01094954]
[1767561092302,0.01094894,91333.0,91328.0,0.01094954]
[1767561093373,0.01094918,91331.0,91326.0,0.01094978]
[1767561093572,0.01094906,91332.0,91327.0,0.01094966]
[1767561094762,0.01094882,91334.0,91329.0,0.01094942]
[1767561095092,0.01094894,91333.0,91327.0,0.01094966]
[1767561095304,0.01094894,91333.0,91328.0,0.01094954]
[1767561096124,0.03286846,91337.0,91333.0,0.000999]
[1767561096300,0.01094846,91337.0,91331.0,0.01094918]
[1767561097243,0.01094858,91336.0,91331.0,0.01094918]
[1767561097794,0.01094858,91336.0,91324.0,0.20060812]
[1767561098001,0.01094858,91336.0,91331.0,0.01094918]
[1767561099175,0.0109487,91335.0,91330.0,0.0109493]
[1767561099378,0.01094858,91336.0,91331.0,0.01094918]
[1767561099908,0.02192,91338.0,91336.0,0.000999]
[1767561100319,0.03286834,91338.0,91334.0,0.01094882]
[1767561100527,0.03286834,91338.0,91333.0,0.01094894]
[1767561100729,0.01094846,91337.0,91332.0,0.01094906]
[1767561101939,0.01094858,91336.0,91332.0,0.01094906]
[1767561102145,0.01094846,91337.0,91332.0,0.01094906]
[1767561102666,0.03286834,91338.0,91333.0,0.01094894]
[1767561102898,0.03286834,91338.0,91332.0,0.01094906]
[1767561102899,0.01094846,91337.0,91332.0,0.01094906]
[1767561103247,0.03286834,91338.0,91332.0,0.01094906]
[1767561103248,0.01094834,91338.0,91332.0,0.01094906]
[1767561103455,0.01094858,91336.0,91332.0,0.0451719]
[1767561103661,0.01094846,91337.0,91332.0,0.05612096]
[1767561103970,0.01094846,91337.0,91332.0,0.01094906]
[1767561104560,0.01094786,91342.0,91335.0,0.0109487]
[1767561104751,0.01094798,91341.0,91337.0,0.000999]
[1767561105279,0.01094822,91339.0,91334.0,0.06569255]
[1767561105562,0.0109481,91340.0,91334.0,0.01094882]
[1767561106388,0.0109481,91340.0,91335.0,0.0109487]
[1767561106572,0.05859064,91340.0,91335.0,0.0109487]
[1767561107039,0.04764254,91338.0,91333.0,0.0656933]
[1767561108038,0.04764254,91338.0,91335.0,0.0109487]
[1767561108355,0.04764254,91334.0,91329.0,0.07666672]
[1767561108581,0.04764254,91334.0,91330.0,0.0109493]
[1767561108957,0.01094858,91336.0,91331.0,0.01094918]
[1767561109507,0.01094834,91338.0,91334.0,0.0005968]
[1767561110162,0.01094846,91337.0,91334.0,0.0005968]
[1767561115667,0.01094834,91338.0,91334.0,0.0005968]
[1767561116232,0.01094846,91337.0,91334.0,0.0005968]
[1767561116762,0.06569079,91337.0,91334.0,0.0005968]
[1767561117365,0.05474336,91336.0,91334.0,0.0005968]
[1767561117836,0.1023859,91336.0,91324.0,0.01095002]
[1767561118041,0.0109493,91330.0,91324.0,0.03287002]
[1767561118252,0.06569475,91332.0,91330.0,0.000999]
[1767561118452,0.01094906,91332.0,91330.0,0.000999]
[1767561118658,0.01094906,91332.0,91327.0,0.05612156]
[1767561118860,0.01094906,91332.0,91327.0,0.01094966]
[1767561119065,0.01094918,91331.0,91326.0,0.01094978]
[1767561119469,0.01094918,91331.0,91325.0,0.06569908]
[1767561119470,0.0109493,91330.0,91325.0,0.0451719]
[1767561119680,0.0109493,91330.0,91325.0,0.0561218]
[1767561120972,0.01094882,91334.0,91330.0,0.0119483]
[1767561121275,0.04662181,91332.0,91325.0,0.05474904]
[1767561121477,0.04662181,91332.0,91327.0,0.01094966]
[1767561122076,0.05757087,91332.0,91327.0,0.01094966]
[1767561122377,0.05757087,91332.0,91327.0,0.01081146]
[1767561122794,0.04671005,91330.0,91326.0,0.01094978]
[1767561123102,0.04571105,91330.0,91327.0,0.01094966]
[1767561123306,0.01094906,91332.0,91328.0,0.04612888]
[1767561125806,0.01094918,91331.0,91328.0,0.04612888]
[1767561126149,0.01094906,91332.0,91328.0,0.04612888]
[1767561126342,0.06569408,91333.0,91328.0,0.05707842]
[1767561126343,0.01094894,91333.0,91328.0,0.05707842]
[1767561126547,0.01094906,91332.0,91328.0,0.04612888]
[1767561127063,0.01094894,91333.0,91328.0,0.05707842]
[1767561127231,0.05474269,91337.0,91330.0,0.05707818]
[1767561127567,0.06568977,91339.0,91331.0,0.01094918]
[1767561127568,0.01094834,91338.0,91331.0,0.01094918]
[1767561127704,0.0109481,91340.0,91335.0,0.04612888]
[1767561127904,0.0109481,91340.0,91332.0,0.01094906]
[1767561127905,0.04666322,91338.0,91332.0,0.01094906]
[1767561128105,0.06568967,91339.0,91332.0,0.01094906]
[1767561128548,0.01094846,91337.0,91331.0,0.01094918]
[1767561128851,0.01094858,91336.0,91332.0,0.01094906]
[1767561129394,0.01094846,91337.0,91332.0,0.01094906]
[1767561129597,0.01094846,91337.0,91332.0,0.05707794]
[1767561129794,0.01094846,91337.0,91332.0,0.01094906]
[1767561129998,0.01094846,91337.0,91332.0,0.05707794]
[1767561130503,0.01094834,91338.0,91333.0,0.01094894]
[1767561130742,0.01094846,91337.0,91334.0,0.04612888]
[1767561131382,0.01094846,91337.0,91334.0,0.04512988]
[1767561132634,0.0109481,91340.0,91326.0,0.04612888]
[1767561132635,0.01094906,91332.0,91326.0,0.04612888]
[1767561132834,0.05643579,91334.0,91326.0,0.04612888]
[1767561133094,0.01094894,91333.0,91327.0,0.01094966]
[1767561133489,0.01094894,91333.0,91326.0,0.01094978]
[1767561133688,0.01094906,91332.0,91328.0,0.01094954]
[1767561134138,0.01094942,91329.0,91324.0,0.06804888]
[1767561134344,0.01094942,91329.0,91324.0,0.0789989]
[1767561134557,0.01094942,91329.0,91325.0,0.04612888]
[1767561135167,0.0109493,91330.0,91325.0,0.05707878]
[1767561135335,0.01094942,91329.0,91324.0,0.03287002]
[1767561135516,0.01094942,91329.0,91324.0,0.0789989]
[1767561135753,0.01094954,91328.0,91325.0,0.04612888]
[1767561136145,0.01094942,91329.0,91325.0,0.04612888]
[1767561136602,0.01094954,91328.0,91325.0,0.04612888]
[1767561136745,0.01094942,91329.0,91325.0,0.04612888]
[1767561137157,0.0109493,91330.0,91325.0,0.05707878]
[1767561137378,0.01094942,91329.0,91325.0,0.04612888]
[1767561137802,0.01094954,91328.0,91325.0,0.04612888]
[1767561139540,0.06569776,91328.0,91325.0,0.04612888]
[1767561140265,0.05369776,91328.0,91325.0,0.04612888]
[1767561140465,0.0646473,91328.0,91325.0,0.04612888]
[1767561141143,0.06569829,91327.0,91324.0,0.02178181]
[1767561141321,0.01095014,91323.0,91319.0,0.04612888]
[1767561141488,0.01095014,91323.0,91320.0,0.02192]
[1767561141935,0.06570157,91322.0,91319.0,7.086e-05]
[1767561142745,0.05475225,91321.0,91319.0,7.086e-05]
[1767561143240,0.06547083,91321.0,91319.0,7.086e-05]
[1767561143442,0.01071858,91320.0,91319.0,7.086e-05]
[1767561143648,0.01071858,91320.0,91306.0,0.02085627]
[1767561143649,0.0109511,91315.0,91306.0,0.02085627]
[1767561143818,0.0109511,91315.0,91306.0,0.02121598]
[1767561143819,0.0109517,91310.0,91306.0,0.02121598]
[1767561143997,0.0099527,91310.0,91306.0,0.02121598]
[1767561144205,0.0109517,91310.0,91306.0,0.02121598]
[1767561144399,0.01095182,91309.0,91306.0,0.02121598]
[1767561145019,0.0657106,91310.0,91306.0,0.02121598]
[1767561145020,0.0109517,91310.0,91306.0,0.02121598]
[1767561145335,0.06570996,91311.0,91306.0,0.02121598]
[1767561145336,0.06570996,91311.0,91306.0,0.03216816]
[1767561145536,0.0109517,91310.0,91306.0,0.02121598]
[1767561145764,0.01095182,91309.0,91306.0,0.01580208]
[1767561145969,0.05475971,91308.0,91306.0,0.00035971]
[1767561146186,0.00063929,91306.0,91300.0,0.0328729]
[1767561146392,0.01095242,91304.0,91300.0,0.02197514]
[1767561146568,0.01095254,91303.0,91300.0,0.02197514]
[1767561146769,0.01095242,91304.0,91300.0,0.02197514]
[1767561147305,0.01095254,91303.0,91300.0,0.02197514]
[1767561147630,0.01095242,91304.0,91300.0,0.02197514]
[1767561147966,0.01095254,91303.0,91300.0,0.02197514]
[1767561148537,0.01095254,91303.0,91300.0,0.02183695]
[1767561148804,0.01095242,91304.0,91300.0,0.02183695]
[1767561149708,0.01095254,91303.0,91300.0,0.02183695]
[1767561150053,0.01095254,91303.0,91300.0,0.02169876]
[1767561150454,0.01095218,91306.0,91303.0,0.000359]
[1767561150788,0.01095218,91306.0,91302.0,0.01095266]
[1767561150990,0.01095206,91307.0,91302.0,0.05698732]
[1767561151890,0.01095218,91306.0,91302.0,0.04603466]
[1767561152111,0.01095206,91307.0,91302.0,0.05698732]
[1767561152547,0.01095206,91307.0,91302.0,0.01095266]
[1767561153067,0.01095206,91307.0,91300.0,0.08741574]
[1767561153221,0.01095206,91307.0,91302.0,0.01095266]
[1767561154011,0.06571189,91308.0,91302.0,0.01095266]
[1767561154157,0.01095194,91308.0,91302.0,0.01095266]
[1767561154367,0.06570989,91311.0,91303.0,0.01095254]
[1767561155707,0.01095194,91308.0,91304.0,0.04724005]
[1767561155886,0.01095206,91307.0,91304.0,0.04710186]
[1767561156882,0.01095194,91308.0,91304.0,0.04710186]
[1767561157330,0.01095206,91307.0,91304.0,0.04710186]
[1767561158427,0.01095206,91307.0,91303.0,0.01095254]
[1767561159991,0.01095218,91306.0,91302.0,0.04724005]
[1767561160189,0.0109523,91305.0,91302.0,0.04724005]
[1767561160321,0.01095218,91306.0,91305.0,0.000359]
[1767561160727,0.01095218,91306.0,91302.0,0.03101746]
[1767561160946,0.01095218,91306.0,91302.0,0.04197012]
[1767561161262,0.01095218,91306.0,91302.0,0.01095266]
[1767561161460,0.01095218,91306.0,91301.0,0.01095278]
[1767561162548,0.01095218,91306.0,91301.0,0.05819283]
[1767561163014,0.01095194,91308.0,91302.0,0.05819271]
[1767561163834,0.05475882,91310.0,91303.0,0.01095254]
[1767561164610,0.01095194,91308.0,91303.0,0.01095254]
[1767561164754,0.01095194,91308.0,91304.0,0.01095242]
[1767561164964,0.01095194,91308.0,91303.0,0.01095254]
[1767561165185,0.05475882,91310.0,91304.0,0.01095242]
[1767561166825,0.01095194,91308.0,91302.0,0.05819271]
[1767561167039,0.01095206,91307.0,91303.0,0.01095254]
[1767561167393,0.01095206,91307.0,91302.0,0.05819271]
[1767561167819,0.01095194,91308.0,91303.0,0.01095254]
[1767561168017,0.01095194,91308.0,91304.0,0.01095242]
[1767561168222,0.01095182,91309.0,91304.0,0.01095242]
[1767561168600,0.01095194,91308.0,91303.0,0.01095254]
[1767561169331,0.01095206,91307.0,91302.0,0.05819271]
[1767561169512,0.01095206,91307.0,91303.0,0.01095254]
[1767561170191,0.01095206,91307.0,91302.0,0.05819271]
[1767561170355,0.000999,91303.0,91302.0,0.04724005]
[1767561170498,0.01095242,91304.0,91300.0,0.06893881]
[1767561170706,0.01095254,91303.0,91300.0,0.02169876]
[1767561170946,0.05476376,91302.0,91300.0,5.514e-05]
[1767561171140,0.05476376,91302.0,91293.0,0.02192]
[1767561171141,0.06571813,91299.0,91293.0,0.02192]
[1767561171389,0.0547675,91296.0,91291.0,0.000154]
[1767561171716,0.05476927,91293.0,91291.0,0.000154]
[1767561171998,0.06572217,91294.0,91291.0,0.000154]
[1767561172211,0.01110798,91291.0,91284.0,0.05819487]
[1767561172450,0.01095434,91288.0,91284.0,0.04724005]
[1767561172647,0.01095434,91288.0,91281.0,0.03287518]
[1767561172648,0.00079,91284.0,91281.0,0.03287518]